bitfinex-derivatives/quotes_ETHF0:USTF0_20240910
["timestamp","ask_amount","ask_price","bid_price","bid_amount"]
[1725993928934,0.41817,2391.3,2391.0,4.4382]
[1725993929124,0.76,2391.8,2391.0,4.02]
[1725993929125,1.80519,2391.8,2391.0,4.02]
[1725993929634,1.80519,2391.8,2391.1,0.41818]
[1725993929820,1.80519,2391.8,2391.0,4.02]
[1725993929821,0.41818,2391.2,2391.0,4.02]
[1725993930026,1.04534,2391.5,2391.0,4.02]
[1725993930429,0.41817,2391.3,2391.0,4.43821]
[1725993930636,0.41817,2391.2,2391.0,4.02]
[1725993930835,0.76,2391.8,2391.0,4.02]
[1725993931038,1.04527,2391.6,2391.0,4.02]
[1725993931329,1.04527,2391.6,2391.0,4.4382]
[1725993931330,0.41816,2391.3,2391.0,4.4382]
[1725993931529,0.41818,2391.2,2391.0,4.4382]
[1725993931735,0.41816,2391.3,2391.0,4.4382]
[1725993931928,0.41819,2391.1,2391.0,4.02]
[1725993932123,1.04522,2391.7,2391.0,4.4382]
[1725993932330,0.41818,2391.2,2391.0,4.4382]
[1725993932729,0.41818,2391.2,2391.0,8.6206]
[1725993932939,0.41815,2391.4,2391.2,0.41817]
[1725993933140,0.41816,2391.3,2391.1,0.41818]
[1725993933533,0.41815,2391.4,2391.1,0.41818]
[1725993933840,0.41816,2391.3,2391.1,0.41818]
[1725993934229,0.41816,2391.3,2391.0,4.4382]
[1725993934438,0.41816,2391.3,2391.1,0.41819]
[1725993934635,0.41816,2391.3,2391.0,4.4382]
[1725993934937,0.76,2391.8,2391.0,8.2024]
[1725993934938,1.80522,2391.8,2391.0,8.2024]
[1725993935237,0.3893,2391.8,2391.5,4.02]
[1725993935741,0.4181,2391.7,2391.5,4.43812]
[1725993935930,0.4181,2391.7,2391.5,8.61972]
[1725993937123,0.4181,2391.7,2391.5,8.2016]
[1725993937324,0.3893,2391.8,2391.2,4.02]
[1725993937533,0.41815,2391.4,2391.2,4.02]
[1725993937737,1.04527,2391.6,2391.2,4.43817]
[1725993937928,0.41815,2391.4,2391.2,4.43817]
[1725993938337,0.41814,2391.4,2390.9,4.02]
[1725993938727,0.3656,2391.7,2391.0,8.53498595]
[1725993939042,0.41814,2391.4,2391.2,0.41817]
[1725993939237,1.41085,2391.7,2391.0,8.53498595]
[1725993939632,0.41813,2391.5,2391.3,0.41815]
[1725993940331,0.3656,2391.7,2391.2,4.02]
[1725993940529,1.04526,2391.7,2391.2,4.02]
[1725993940737,1.04527,2391.6,2391.2,4.02]
[1725993940934,0.41816,2391.3,2391.2,4.02]
[1725993941635,1.04527,2391.6,2391.2,4.02]
[1725993941843,0.41814,2391.4,2391.2,4.43817]
[1725993942138,0.41816,2391.3,2391.2,4.02]
[1725993942436,0.41815,2391.4,2391.2,4.43817]
[1725993942938,0.41816,2391.3,2391.2,4.43817]
[1725993943125,0.41816,2391.3,2391.2,4.02]
[1725993943330,1.04524,2391.7,2391.3,0.41814]
[1725993943529,0.41814,2391.5,2391.3,0.41814]
[1725993944041,0.3893,2391.8,2391.3,4.1816]
[1725993944336,0.3893,2391.8,2391.5,0.41812]
[1725993944540,0.41809,2391.7,2391.5,0.41811]
[1725993944930,0.80737,2391.8,2391.6,0.41809]
[1725993945136,0.3893,2391.8,2391.5,4.02]
[1725993945331,0.80737,2391.8,2391.6,0.41809]
[1725993945536,0.80737,2391.8,2391.5,4.02]
[1725993945731,0.41809,2391.7,2391.5,4.43811]
[1725993946133,0.41814,2391.4,2391.2,4.43816]
[1725993946333,0.41818,2391.2,2391.0,0.4182]
[1725993946542,1.04534,2391.5,2391.0,0.41819]
[1725993946743,0.41819,2391.1,2390.9,4.02]
[1725993946934,0.41818,2391.2,2391.0,0.4182]
[1725993947243,1.82258,2391.4,2390.3,4.02]
[1725993947244,1.04549,2391.1,2390.3,4.02]
[1725993947544,0.41829,2390.6,2390.4,0.41831]
[1725993947742,1.41429,2391.1,2390.0,4.02]
[1725993947743,1.04568,2390.7,2390.0,4.02]
[1725993947942,0.41837,2390.1,2390.0,4.02]
[1725993948147,0.41837,2390.1,2389.4,1.59327408]
[1725993948148,0.41846,2389.6,2389.4,4.02]
[1725993948342,0.41844,2389.7,2389.4,8.62329]
[1725993948548,1.04589,2390.2,2389.5,0.41846]
[1725993948855,0.4184,2390.0,2389.6,0.41845]
[1725993949043,0.3863,2390.1,2389.7,4.02]
[1725993949248,0.3863,2390.1,2390.0,0.41838]
[1725993949444,1.04568,2390.7,2390.0,4.43838]
[1725993949445,0.41834,2390.3,2390.0,4.43838]
[1725993950343,0.41834,2390.3,2390.0,4.02]
[1725993950548,0.3863,2390.6,2390.0,4.02]
[1725993950847,0.3863,2390.6,2389.6,1.04613]
[1725993950848,0.80459,2390.6,2390.3,4.43832]
[1725993951148,0.3863,2390.6,2390.3,4.02]
[1725993951348,0.3863,2390.6,2390.4,0.41831]
[1725993951737,0.3863,2390.6,2390.3,4.02]
[1725993951938,0.80459,2390.6,2390.3,4.02]
[1725993952145,0.80459,2390.6,2390.0,4.02]
[1725993952146,5.61525,2390.6,2390.0,4.02]
[1725993952348,0.41837,2390.1,2390.0,4.02]
[1725993952853,0.4184,2390.0,2389.7,4.02]
[1725993953151,0.4184,2390.0,2389.7,4.43844]
[1725993953352,0.41838,2390.1,2389.7,4.43844]
[1725993953653,0.41838,2390.1,2389.7,4.43842]
[1725993953846,0.41841,2389.9,2389.7,4.02]
[1725993954045,0.41842,2389.8,2389.7,4.02]
[1725993954247,0.79092,2389.8,2389.4,4.43848]
[1725993954542,0.79092,2389.8,2389.4,4.43847]
[1725993954953,0.79092,2389.8,2389.7,4.02]
[1725993954954,0.3725,2389.8,2389.7,4.02]
[1725993955144,0.7682,2390.1,2389.7,4.43842]
[1725993955456,0.7682,2390.1,2389.7,4.02]
[1725993955457,0.41842,2389.8,2389.7,4.02]
[1725993956760,0.41842,2389.8,2389.5,0.41846]
[1725993957059,0.41841,2389.9,2389.6,0.41845]
[1725993957350,0.3725,2390.0,2389.7,4.43842]
[1725993957351,0.79089,2390.0,2389.7,4.43842]
[1725993958049,0.41842,2389.8,2389.7,4.02]
[1725993958249,0.41842,2389.8,2389.5,0.41847]
[1725993959157,0.41847,2389.6,2389.4,4.02]
[1725993959353,1.04601,2389.9,2389.1,4.02]
[1725993959652,1.04601,2389.9,2389.0,0.41855]
[1725993959653,0.41851,2389.3,2389.0,0.41855]
[1725993959955,0.3843,2389.2,2389.0,0.41855]
[1725993960259,0.3843,2389.2,2388.8,4.02]
[1725993960761,0.3843,2389.2,2389.0,0.41855]
[1725993961345,0.80283,2389.2,2388.9,0.41857]
[1725993961548,0.3843,2389.2,2388.8,4.02]
[1725993961748,0.41856,2389.0,2388.8,4.02]
[1725993961947,0.3843,2389.2,2388.5,4.02]
[1725993962152,1.04608,2389.8,2389.1,4.02]
[1725993962354,1.04593,2390.1,2389.1,4.02]
[1725993962355,0.4185,2389.4,2389.1,4.02]
[1725993962546,0.4185,2389.4,2389.2,0.41852]
[1725993962751,0.41848,2389.5,2389.1,4.02]
[1725993963062,1.04614,2389.6,2389.1,4.43853]
[1725993963253,0.41852,2389.3,2389.1,4.02]
[1725993963557,0.4185,2389.4,2389.2,0.41852]
[1725993963756,0.41851,2389.3,2389.1,4.43854]
[1725993964057,1.04614,2389.6,2389.1,4.43854]
[1725993964458,5.23174,2389.6,2388.8,4.02]
[1725993964657,0.7586,2389.7,2388.8,4.02]
[1725993964863,0.7586,2389.7,2388.4,0.41865]
[1725993965065,0.7586,2389.7,2388.2,12.96386267]
[1725993965066,0.41857,2389.0,2388.5,4.02]
[1725993965249,0.41858,2388.9,2388.6,0.41863]
[1725993965653,0.41858,2388.9,2388.7,0.41861]
[1725993965849,0.375,2389.1,2388.5,4.02]
[1725993966055,0.375,2389.1,2388.8,4.02]
[1725993966367,0.79355,2389.1,2388.8,4.02]
[1725993966665,0.79355,2389.1,2388.9,0.41857]
[1725993966863,0.79355,2389.1,2388.8,4.02]
[1725993966864,1.04652,2388.8,2388.4,0.41866]
[1725993967159,4.1856,2389.0,2388.4,4.02]
[1725993967160,0.82117,2389.0,2388.4,4.02]
[1725993967366,0.82117,2389.0,2388.8,0.41859]
[1725993967551,0.82117,2389.0,2388.7,0.4186]
[1725993967552,0.41858,2388.9,2388.7,0.4186]
[1725993967756,0.41858,2388.9,2388.4,4.02]
[1725993968063,0.41857,2389.0,2388.6,4.02]
[1725993968259,0.41857,2389.0,2388.8,0.41859]
[1725993968660,0.41858,2388.9,2388.6,4.02]
[1725993968953,0.41859,2388.9,2388.7,0.41861]
[1725993969359,1.42138,2389.1,2388.6,4.02]
[1725993969560,0.41859,2388.8,2388.7,0.41861]
[1725993969857,0.41861,2388.8,2388.6,4.43862]
[1725993970060,0.41864,2388.6,2388.5,0.41864]
[1725993970454,0.41864,2388.6,2388.3,4.02]
[1725993970660,1.42139,2389.1,2388.3,9.2539]
[1725993970661,1.04641,2389.0,2388.3,9.2539]
[1725993970864,0.4186,2388.8,2388.6,0.41861]
[1725993971378,0.4186,2388.8,2388.7,0.41861]
[1725993971564,0.41861,2388.8,2388.6,0.41862]
[1725993971768,4.1864,2388.7,2387.4,1.04707]
[1725993971962,4.1864,2388.7,2387.1,0.41889]
[1725993971963,0.41887,2387.3,2387.1,0.41889]
[1725993972165,0.41887,2387.3,2387.0,0.4189]
[1725993972465,2.49101,2388.7,2386.4,4.02]
[1725993972466,4.02,2388.0,2386.4,4.02]
[1725993972667,0.3919,2387.2,2385.5,0.4192]
[1725993972959,0.3979,2387.1,2386.2,4.02]
[1725993973165,0.3919,2387.2,2386.5,4.02]
[1725993973357,0.3919,2387.2,2386.9,0.41892]
[1725993973665,0.3919,2387.2,2386.9,0.41893]
[1725993973865,0.3919,2387.2,2386.5,4.02]
[1725993974067,0.3979,2387.7,2386.5,4.02]
[1725993974068,0.3979,2387.7,2386.8,4.02]
[1725993974261,0.7898,2387.7,2386.8,4.02]
[1725993974465,0.3919,2387.7,2387.1,4.02]
[1725993974760,0.3919,2387.7,2387.4,0.41883]
[1725993974964,0.3892,2388.3,2387.4,4.02]
[1725993975161,0.41874,2388.0,2387.6,0.4188]
[1725993975361,0.7541,2388.3,2387.4,4.02]
[1725993975567,0.41874,2388.0,2387.5,0.41881]
[1725993975865,0.41875,2387.9,2387.5,0.41881]
[1725993976169,0.7541,2388.3,2387.2,0.382]
[1725993976469,4.02,2388.1,2387.0,0.4189]
[1725993976764,1.0469,2387.9,2386.7,4.02]
[1725993976963,0.41883,2387.5,2386.7,4.02]
[1725993977269,0.4029,2388.0,2387.0,4.02]
[1725993977465,0.41879,2387.7,2387.0,4.02]
[1725993977661,0.41879,2387.7,2387.2,0.41887]
[1725993977864,0.41879,2387.7,2387.3,0.41885]
[1725993978361,0.41879,2387.7,2387.1,0.7335]
[1725993978362,0.4029,2388.0,2387.1,0.7335]
[1725993978565,1.04689,2387.9,2387.1,1.15239]
[1725993978769,1.04698,2387.7,2386.7,4.02]
[1725993978976,0.41887,2387.3,2386.9,0.41892]
[1725993979269,0.41887,2387.3,2386.9,0.41893]
[1725993979468,0.41889,2387.2,2386.7,4.02]
[1725993979675,1.04707,2387.5,2386.8,0.41894]
[1725993979676,0.41887,2387.3,2386.8,0.41894]
[1725993979871,0.41888,2387.2,2386.8,0.41894]
[1725993980369,0.3941,2387.1,2385.9,0.3828]
[1725993980668,0.3941,2387.1,2386.1,12.90994068]
[1725993980864,0.41896,2386.8,2386.4,0.41901]
[1725993981057,0.41895,2386.8,2386.4,0.419]
[1725993981257,0.3953,2387.0,2386.1,4.02]
[1725993981462,0.41895,2386.8,2386.4,0.41901]
[1725993981672,0.41896,2386.7,2386.3,0.41902]
[1725993981865,0.41896,2386.7,2386.2,8.64415601]
[1725993981866,0.41899,2386.6,2386.2,9.06319601]
[1725993982069,0.41899,2386.6,2386.1,4.02]
[1725993982272,1.44258,2387.0,2385.9,0.3828]
[1725993982273,1.04737,2386.8,2385.9,0.3828]
[1725993982466,0.41904,2386.3,2385.9,0.80189]
[1725993982768,0.41904,2386.3,2385.9,0.8019]
[1725993982769,0.41905,2386.3,2385.9,0.8019]
[1725993982966,0.41908,2386.1,2385.9,0.3828]
[1725993983169,1.04737,2386.8,2385.8,0.41912]
[1725993983474,0.41906,2386.2,2385.8,8.59908751]
[1725993983666,1.04746,2386.6,2385.8,8.59908751]
[1725993983867,1.04737,2386.8,2385.8,4.02]
[1725993984064,0.41904,2386.3,2386.0,0.41908]
[1725993984270,1.04737,2386.8,2385.8,4.02]
[1725993984465,1.04754,2386.5,2385.8,4.02]
[1725993984658,1.04741,2386.7,2386.0,0.41908]
[1725993984659,0.41903,2386.3,2386.0,0.41908]
[1725993984858,0.41903,2386.4,2386.1,0.41907]
[1725993985064,0.41903,2386.3,2386.1,0.41907]
[1725993985259,1.04754,2386.5,2385.5,4.02]
[1725993985459,1.04741,2386.7,2385.8,4.02]
[1725993985666,0.41903,2386.3,2385.8,4.02]
[1725993985965,0.41908,2386.1,2385.8,0.41911]
[1725993986161,0.80086,2386.2,2385.9,0.4191]
[1725993986464,0.3818,2386.2,2385.9,0.41909]
[1725993986862,0.41908,2386.1,2385.8,0.41911]
[1725993987064,0.3818,2386.2,2385.9,0.4191]
[1725993987266,0.41907,2386.1,2385.8,0.41911]
[1725993987461,0.41907,2386.1,2385.9,0.4191]
[1725993987976,0.41907,2386.1,2385.6,8.92471866]
[1725993987977,0.41907,2386.1,2385.8,0.41911]
[1725993988277,0.41907,2386.1,2385.6,8.92471866]
[1725993988278,0.41907,2386.1,2385.9,0.4191]
[1725993988770,0.41907,2386.1,2385.8,0.41911]
[1725993989272,0.3818,2386.2,2385.2,0.3919]
[1725993989472,1.04784,2385.8,2384.9,4.02]
[1725993989776,0.41923,2385.2,2384.9,0.41927]
[1725993990072,1.04793,2385.6,2384.3,5.45464]
[1725993990381,1.04793,2385.6,2384.6,8.80510685]
[1725993990382,0.4035,2385.5,2384.6,8.80510685]
[1725993990674,0.41922,2385.3,2384.6,8.80510685]
[1725993990875,0.4035,2385.5,2384.9,0.41928]
[1725993991176,1.83725,2386.0,2385.3,0.4192]
[1725993991177,0.7895,2386.0,2385.3,0.4192]
[1725993991371,0.3983,2385.9,2385.3,0.4192]
[1725993991567,0.3983,2385.9,2384.7,4.02]
[1725993991769,0.3983,2385.9,2384.5,1.04838]
[1725993991972,0.41917,2385.6,2385.1,0.41924]
[1725993992273,0.41917,2385.5,2384.7,8.95136038]
[1725993992475,0.41917,2385.5,2385.0,0.41925]
[1725993992775,0.41916,2385.6,2385.1,0.41924]
[1725993993370,0.41917,2385.6,2385.0,0.41925]
[1725993993573,1.44609,2385.9,2384.6,8.95136038]
[1725993993574,4.02,2385.8,2384.6,8.95136038]
[1725993993885,0.41921,2385.3,2384.8,0.41929]
[1725993994181,0.41921,2385.3,2384.8,0.41928]
[1725993994873,0.4192,2385.4,2384.9,0.41928]
[1725993995176,0.41914,2385.8,2384.8,4.02]
[1725993995377,0.3983,2385.9,2384.8,5.06821]
[1725993995570,0.41914,2385.8,2385.3,0.4192]
[1725993995764,0.41914,2385.7,2385.2,0.41922]
[1725993995972,0.41914,2385.7,2384.9,0.3956]
[1725993995973,0.41919,2385.4,2384.5,4.02]
[1725993996176,0.3783,2385.3,2384.9,0.41927]
[1725993996478,0.79751,2385.3,2384.9,0.41928]
[1725993997065,0.3783,2385.3,2384.8,0.41929]
[1725993997264,0.41923,2385.2,2384.8,0.41929]
[1725993997973,0.3783,2385.3,2384.6,0.41933]
[1725993997974,0.41926,2385.0,2384.6,0.41933]
[1725993998171,0.3783,2385.3,2384.5,0.81494]
[1725993998172,1.79791,2385.2,2384.5,0.81494]
[1725993998365,1.79791,2385.2,2384.0,1.04858]
[1725993998366,1.04812,2385.1,2384.4,0.41935]
[1725993998568,0.41931,2384.8,2384.4,0.41935]
[1725993998776,0.4017,2384.7,2384.5,0.41935]
[1725993999169,0.4017,2384.7,2384.4,0.41936]
[1725993999478,0.41936,2384.5,2383.7,1.04873]
[1725993999668,0.41936,2384.5,2384.2,0.4194]
[1725993999868,0.41937,2384.4,2384.1,0.41941]
[1725994000178,0.4017,2384.7,2384.0,1.0486]
[1725994000378,0.4017,2384.7,2384.1,0.3844]
[1725994000379,0.82102,2384.7,2384.1,0.3844]
[1725994000574,0.4017,2384.7,2383.9,4.02]
[1725994000778,0.4017,2384.7,2384.0,1.0486]
[1725994000967,0.4017,2384.7,2384.1,1.04856]
[1725994001173,0.7498,2385.2,2384.3,1.04844]
[1725994001480,0.41925,2385.1,2384.8,0.41929]
[1725994001778,0.7498,2385.2,2384.8,0.41929]
[1725994001968,0.7498,2385.2,2384.4,1.4248]
[1725994001969,0.41925,2385.1,2384.4,1.4248]
[1725994002380,0.7498,2385.2,2384.4,1.4248]
[1725994002583,0.41925,2385.1,2384.8,0.41929]
[1725994002766,0.7498,2385.2,2384.4,0.3764]
[1725994003073,0.41928,2384.9,2384.4,0.3764]
[1725994003380,1.04816,2385.0,2384.2,4.02]
[1725994003575,0.41929,2384.9,2384.6,0.41932]
[1725994004073,1.79789,2385.2,2384.7,0.41931]
[1725994004074,0.7498,2385.2,2384.7,0.41931]
[1725994004275,0.41929,2384.9,2384.6,0.41932]
[1725994004579,0.41929,2384.9,2384.7,0.41931]
[1725994004777,0.4193,2384.8,2384.6,0.41932]
[1725994004973,1.7979,2385.2,2384.1,0.3636]
[1725994004974,0.41933,2384.7,2384.1,0.3636]
[1725994005174,0.3894,2384.7,2384.4,0.41936]
[1725994005373,0.3894,2384.7,2383.9,5.44503]
[1725994005573,0.41935,2384.5,2384.2,0.41939]
[1725994005779,0.41937,2384.4,2384.2,0.41939]
[1725994006279,0.41935,2384.5,2384.3,0.41938]
[1725994006576,0.41935,2384.5,2384.2,0.41939]
[1725994006773,0.41937,2384.4,2384.2,0.41939]
[1725994007579,0.41937,2384.4,2384.1,0.41941]
[1725994007783,0.41939,2384.3,2384.1,0.41941]
[1725994008380,0.41939,2384.3,2383.6,5.06877]
[1725994008592,0.41937,2384.4,2383.7,1.04873]
[1725994008776,0.41941,2384.2,2384.0,0.41943]
[1725994009088,0.41935,2384.5,2383.8,1.04869]
[1725994009381,1.1336,2384.6,2383.9,1.04862]
[1725994009677,0.41937,2384.4,2384.2,0.41939]
[1725994010186,0.41938,2384.4,2383.9,0.3853]
[1725994010578,0.41939,2384.3,2384.1,0.41941]
[1725994010774,0.41937,2384.4,2384.2,0.4194]
[1725994011875,0.41938,2384.4,2384.2,0.4194]
[1725994012090,1.1336,2384.6,2383.9,0.3853]
[1725994012296,0.41938,2384.4,2384.2,0.4194]
[1725994013173,4.1944,2384.3,2384.2,0.4194]
[1725994013382,4.1944,2384.3,2383.5,1.04879]
[1725994013588,0.4194,2384.3,2383.7,1.0487]
[1725994013785,0.4194,2384.3,2384.1,0.41942]
[1725994014287,0.4194,2384.2,2384.0,0.41943]
[1725994014482,0.41942,2384.1,2383.9,0.41944]
[1725994014685,0.41941,2384.2,2383.6,0.20523084]
[1725994014989,0.41941,2384.2,2384.0,0.41943]
[1725994015386,0.41942,2384.1,2384.0,0.41943]
[1725994015586,0.41941,2384.2,2384.0,0.41943]
[1725994016088,0.41942,2384.1,2384.0,0.41943]
[1725994016279,0.41942,2384.1,2383.9,0.41944]
[1725994016979,1.04842,2384.4,2383.9,0.41944]
[1725994017180,1.04842,2384.4,2382.2,2.66366985]
[1725994017181,4.1944,2384.3,2383.0,1.04903]
[1725994017379,4.02,2384.1,2382.9,0.384]
[1725994017578,4.02,2384.1,2383.2,0.41957]
[1725994017579,0.41955,2383.4,2383.2,0.41957]
[1725994017788,1.04876,2383.7,2382.9,0.384]
[1725994017989,1.04869,2383.8,2382.9,0.384]
[1725994018176,1.04865,2383.9,2382.9,0.384]
[1725994018381,1.04877,2383.7,2383.2,0.41956]
[1725994018585,1.1301,2384.0,2382.9,0.384]
[1725994018586,1.04869,2383.8,2382.9,0.384]
[1725994018790,1.1301,2384.0,2383.2,0.41957]
[1725994018791,0.41954,2383.4,2383.2,0.41957]
[1725994019090,1.0487,2383.8,2383.0,0.4196]
[1725994019290,0.4018,2383.3,2383.0,0.4196]
[1725994019694,0.41958,2383.2,2383.0,0.4196]
[1725994019887,0.82137,2383.3,2383.0,0.4196]
[1725994020093,0.82137,2383.3,2382.7,8.90297673]
[1725994020094,0.82137,2383.3,2383.1,0.4196]
[1725994020290,0.41958,2383.2,2383.0,0.41961]
[1725994020488,0.4018,2383.3,2383.2,0.41958]
[1725994020886,1.81033,2384.0,2383.4,0.41953]
[1725994020887,0.4195,2383.7,2383.4,0.41953]
[1725994021099,0.41953,2383.5,2383.3,0.41955]
[1725994021397,1.04869,2383.8,2383.1,0.41959]
[1725994021398,0.41956,2383.3,2383.1,0.41959]
[1725994021590,1.04869,2383.8,2383.0,0.4196]
[1725994021783,0.41955,2383.4,2382.9,0.3637]
[1725994021985,1.04873,2383.7,2382.9,0.3637]
[1725994022186,4.4028,2383.9,2382.9,0.3637]
[1725994022187,0.3828,2383.9,2382.9,0.3637]
[1725994022489,0.3828,2383.9,2383.7,0.41948]
[1725994022686,0.3828,2383.9,2383.3,1.04891]
[1725994022884,0.3828,2383.9,2383.7,0.41948]
[1725994023084,0.3828,2383.9,2383.8,0.41947]
[1725994023388,0.3828,2383.9,2383.3,1.04891]
[1725994023589,0.3828,2383.9,2383.7,0.41949]
[1725994023786,0.3828,2383.9,2383.8,0.41947]
[1725994024289,0.3828,2383.9,2383.7,0.41948]
[1725994024490,0.3828,2383.9,2383.8,0.41947]
[1725994024890,0.80226,2383.9,2383.6,0.4195]
[1725994025091,0.3828,2383.9,2382.8,4.02]
[1725994025288,0.41952,2383.6,2382.9,0.3637]
[1725994025491,0.41952,2383.6,2383.3,0.41955]
[1725994025888,0.7857,2383.8,2383.2,0.41957]
[1725994026088,0.41954,2383.5,2383.1,0.41958]
[1725994026391,0.41954,2383.4,2383.1,0.41958]
[1725994026694,1.04877,2383.7,2382.7,0.3787]
[1725994026898,1.04877,2383.7,2383.0,0.4196]
[1725994026899,0.41956,2383.3,2383.0,0.4196]
[1725994027194,1.04874,2383.7,2382.5,0.3698]
[1725994027385,4.02,2384.3,2382.5,0.41969]
[1725994027386,0.41965,2382.8,2382.5,0.41969]
[1725994027590,1.049,2383.1,2382.1,0.3756]
[1725994027792,1.049,2383.1,2382.1,1.425]
[1725994027992,0.41964,2382.9,2382.6,0.41968]
[1725994028296,0.41965,2382.8,2382.5,0.41969]
[1725994028493,1.04904,2383.0,2382.2,8.9936754]
[1725994028794,0.41967,2382.7,2382.4,0.41971]
[1725994028986,0.3862,2382.6,2381.9,0.3698]
[1725994029199,0.80589,2382.6,2381.9,0.3698]
[1725994029390,0.80589,2382.6,2382.3,0.41973]
[1725994029391,0.3862,2382.6,2382.3,0.41973]
[1725994029690,0.3862,2382.6,2381.1,0.49768387]
[1725994029691,5.06933,2382.4,2381.1,0.49768387]
[1725994029994,1.0494,2382.2,2381.3,8.93736034]
[1725994030380,0.41985,2381.7,2381.1,0.3762]
[1725994030590,4.02,2382.0,2381.5,0.41987]
[1725994030591,0.41983,2381.8,2381.5,0.41987]
[1725994030788,0.41983,2381.8,2381.1,0.3762]
[1725994030988,0.82102,2381.9,2381.6,0.41986]
[1725994031196,0.82101,2381.9,2381.6,0.41986]
[1725994031407,0.4012,2381.9,2381.6,0.41986]
[1725994031792,0.82102,2381.9,2381.5,0.41987]
[1725994032410,8.6196,2381.9,2380.8,1.05]
[1725994032604,0.41984,2381.8,2381.4,0.41989]
[1725994033000,4.4212,2381.9,2381.4,0.41989]
[1725994033001,0.41985,2381.7,2381.4,0.41989]
[1725994033200,4.4212,2381.9,2380.8,1.05]
[1725994033392,4.4212,2381.9,2381.5,0.41987]
[1725994033597,4.84102,2381.9,2381.5,0.41987]
[1725994033798,4.84102,2381.9,2381.5,0.41986]
[1725994033994,4.84102,2381.9,2381.6,0.41986]
[1725994034291,4.84102,2381.9,2380.7,0.7523]
[1725994034292,4.1992,2381.8,2381.1,8.95219281]
[1725994034495,4.02,2381.4,2381.1,8.95219281]
[1725994034697,4.02,2381.8,2380.6,1.05009]
[1725994034893,0.41987,2381.6,2380.7,0.3681]
[1725994035092,1.45076,2381.9,2380.9,1.04996]
[1725994035093,0.4012,2381.9,2380.9,1.04996]
[1725994035289,0.4012,2381.9,2381.3,0.4199]
[1725994035489,0.41994,2381.2,2380.7,0.3681]
[1725994035706,4.02,2381.5,2380.7,0.3681]
[1725994035707,0.4199,2381.4,2380.7,0.3681]
[1725994035910,0.3909,2381.4,2380.7,0.3681]
[1725994036202,0.3909,2381.4,2381.1,0.41993]
[1725994036203,0.8108,2381.4,2381.1,0.41993]
[1725994036401,0.41992,2381.3,2381.0,0.41996]
[1725994036596,0.3838,2381.3,2381.0,0.41996]
[1725994037297,0.80372,2381.3,2381.0,0.41996]
[1725994037602,0.80372,2381.3,2381.0,0.41995]
[1725994037804,0.80372,2381.3,2380.9,0.41997]
[1725994037991,0.80372,2381.3,2381.0,0.41996]
[1725994038194,0.3838,2381.3,2381.1,0.41995]
[1725994038402,0.80371,2381.3,2381.0,0.41995]
[1725994038800,1.04953,2381.9,2380.6,8.96265572]
[1725994039001,0.774,2382.0,2381.0,1.04992]
[1725994039192,0.774,2382.0,2381.5,0.41987]
[1725994039193,0.41983,2381.8,2381.5,0.41987]
[1725994039595,0.41984,2381.8,2381.5,0.41987]
[1725994039803,0.41983,2381.8,2381.5,0.41987]
[1725994039993,0.774,2382.0,2381.5,0.41987]
[1725994040301,0.41987,2381.6,2381.3,0.41991]
[1725994040497,1.04952,2381.9,2381.3,0.4199]
[1725994040697,0.774,2382.0,2381.2,0.3916]
[1725994040897,0.774,2382.0,2380.6,4.02]
[1725994040898,1.04962,2381.7,2380.6,4.7771]
[1725994041197,1.04962,2381.7,2381.1,0.41995]
[1725994041504,0.41994,2381.2,2380.9,0.41997]
[1725994041899,0.3834,2381.6,2380.7,0.3916]
[1725994042198,0.3834,2381.6,2380.9,0.41997]
[1725994042199,0.41993,2381.2,2380.9,0.41997]
[1725994042404,0.41993,2381.2,2380.7,0.3916]
[1725994042405,0.7587,2381.4,2380.7,0.3916]
[1725994042706,0.7587,2381.4,2380.7,0.81161]
[1725994042707,0.41997,2381.0,2380.7,0.81161]
[1725994043003,0.7587,2381.4,2380.7,0.3916]
[1725994043207,0.42001,2380.8,2380.2,0.97412488]
[1725994043410,0.42001,2380.8,2380.5,0.42004]
[1725994043702,1.04979,2381.3,2380.4,0.42007]
[1725994043908,0.7587,2381.4,2380.3,0.3656]
[1725994043909,0.42005,2380.6,2380.3,0.3656]
[1725994044102,0.42003,2380.7,2380.4,0.42006]
[1725994044304,1.04998,2380.9,2380.4,0.42006]
[1725994044608,0.42004,2380.7,2380.4,0.42006]
[1725994044804,1.04998,2380.9,2380.4,0.42006]
[1725994045104,1.04998,2380.9,2380.5,0.42005]
[1725994045105,0.42003,2380.7,2380.5,0.42005]
[1725994045897,1.04991,2381.1,2380.4,0.42006]
[1725994046204,1.04998,2380.9,2380.3,0.3656]
[1725994046509,0.42008,2380.4,2380.1,0.42011]
[1725994046809,1.05005,2380.7,2379.8,9.7086719]
[1725994047107,4.4046,2380.8,2379.8,9.7086719]
[1725994047108,0.4201,2380.3,2379.8,9.7086719]
[1725994047311,1.4246,2380.6,2380.0,0.42014]
[1725994047496,1.4246,2380.6,2380.1,0.42012]
[1725994047909,0.42011,2380.2,2380.0,0.42013]
[1725994048304,1.05019,2380.4,2380.0,0.42013]
[1725994048497,1.05019,2380.4,2379.9,0.42015]
[1725994048702,0.42011,2380.2,2379.6,0.3815]